bitfinex/quotes_SOLUSD_20251018
["timestamp","ask_amount","ask_price","bid_price","bid_amount"]
[1760762131665,2.47962475,184.66,184.64,0.71]
[1760762132886,2.47962475,184.66,184.62,53.21650709]
[1760762133082,2.47962475,184.66,184.63,0.71]
[1760762134089,2.27962475,184.65,184.63,0.71]
[1760762134592,0.2,184.66,184.64,0.71]
[1760762134781,2.47962475,184.66,184.64,0.71]
[1760762135485,2.47962475,184.66,184.63,53.9260627]
[1760762136088,2.27962475,184.65,184.63,53.9260627]
[1760762137289,2.27962475,184.64,184.63,47.8]
[1760762137495,2.97962475,184.64,184.63,47.8]
[1760762137675,2.27962475,184.64,184.63,47.8]
[1760762139804,2.27962475,184.65,184.63,53.91623788]
[1760762139988,2.47962475,184.66,184.64,0.7]
[1760762143490,2.47962475,184.66,184.64,6.11592495]
[1760762143882,0.2,184.66,184.64,6.11592495]
[1760762144282,0.2,184.66,184.65,0.7]
[1760762144482,0.2,184.66,184.65,48.5]
[1760762144683,0.2,184.66,184.65,53.91565123]
[1760762152293,0.86,184.66,184.63,2.1716116]
[1760762152498,1.45808149,184.64,184.63,5.41622518]
[1760762152815,1.45808149,184.65,184.63,6.11622518]
[1760762152994,1.45808149,184.64,184.62,5.4164695]
[1760762153200,2.11808149,184.64,184.62,5.4164695]
[1760762153395,1.45808149,184.64,184.62,5.4164695]
[1760762155296,2.11808149,184.63,184.6,5.41711809]
[1760762155494,2.11808149,184.62,184.6,5.41711809]
[1760762156103,1.45808149,184.62,184.6,6.11711809]
[1760762156290,2.11808149,184.62,184.6,5.41711809]
[1760762156614,1.45808149,184.62,184.6,5.41711809]
[1760762158213,2.11808149,184.64,184.6,5.41711809]
[1760762158410,2.11808149,184.64,184.6,6.11711809]
[1760762158624,2.11808149,184.64,184.61,0.7]
[1760762159415,2.11808149,184.64,184.62,5.41653125]
[1760762159599,1.45808149,184.63,184.62,5.41653125]
[1760762162998,0.66,184.64,184.62,5.41653125]
[1760762163193,1.45808149,184.63,184.62,5.41653125]
[1760762164915,0.2,184.66,184.62,19.67785938]
[1760762165118,0.2,184.66,184.63,0.72]
[1760762165321,2.15808149,184.65,184.62,7.58826076]
[1760762165519,1.45808149,184.63,184.62,7.58826076]
[1760762166091,1.45808149,184.63,184.62,5.41653125]
[1760762166311,1.45808149,184.64,184.62,6.13653125]
[1760762169100,0.7,184.63,184.61,5.41679709]
[1760762169506,1.45808149,184.64,184.61,6.12679709]
[1760762169721,0.7,184.63,184.61,5.41679709]
[1760762171530,2.15808149,184.62,184.6,53.21708459]
[1760762171699,2.15808149,184.62,184.57,23.59]
[1760762171700,0.7,184.61,184.57,48.51]
[1760762171906,1.45808149,184.6,184.57,48.51]
[1760762172332,1.45808149,184.6,184.56,43.11744385]
[1760762172333,0.7,184.59,184.58,5.41770506]
[1760762173339,0.7,184.59,184.54,2.1726732]
[1760762173508,1.45808149,184.55,184.51,6.1297352]
[1760762173704,2.15808149,184.54,184.51,5.4197352]
[1760762173907,2.15808149,184.53,184.49,6.13009455]
[1760762174220,2.15808149,184.52,184.48,5.4206418]
[1760762174420,1.45808149,184.51,184.48,0.71]
[1760762175018,1.45808149,184.51,184.49,0.71]
[1760762175216,1.45808149,184.5,184.47,5.42078423]
[1760762175417,1.45808149,184.5,184.48,0.71]
[1760762175932,1.45808149,184.49,184.47,0.71]
[1760762176244,0.98432314,184.56,184.48,0.71]
[1760762176530,1.45808149,184.53,184.48,0.71]
[1760762176826,0.7,184.58,184.48,0.71]
[1760762177026,1.45808149,184.57,184.48,23.59]
[1760762177241,1.45808149,184.57,184.5,18.9701897]
[1760762177424,2.15808149,184.58,184.5,18.9701897]
[1760762177737,1.45808149,184.57,184.54,22.88]
[1760762177906,1.45808149,184.57,184.54,23.59]
[1760762178307,2.15808149,184.58,184.54,29.00858654]
[1760762178932,1.45808149,184.55,184.5,17.0068194]
[1760762179235,1.45808149,184.54,184.51,6.1297427]
[1760762179422,2.15808149,184.55,184.51,6.1297427]
[1760762179734,1.45808149,184.53,184.51,6.1297427]
[1760762180939,1.45808149,184.53,184.5,5.41998141]
[1760762181253,1.45808149,184.53,184.5,6.12998141]
[1760762181534,1.45808149,184.52,184.5,0.71]
[1760762182232,1.45808149,184.53,184.5,0.71]
[1760762182438,1.45808149,184.53,184.5,6.12997313]
[1760762182627,1.45808149,184.53,178.95,123.2327773]
[1760762182628,1.45808149,184.51,184.45,0.71]
[1760762182928,0.7,184.51,184.45,6.13133516]
[1760762183115,0.7,184.51,184.46,0.71]
[1760762184118,0.7,184.51,184.46,6.13104829]
[1760762185409,0.7,184.5,184.42,5.42240537]
[1760762185607,1.45808149,184.45,184.43,0.71]
[1760762186225,1.45808149,184.45,184.44,0.71]
[1760762186427,1.45808149,184.46,184.44,0.71]
[1760762187635,1.45808149,184.45,184.43,5.42186813]
[1760762187931,1.45808149,184.44,184.43,47.8]
[1760762188325,2.15808149,184.44,184.43,47.8]
[1760762189021,1.45808149,184.44,184.43,47.8]
[1760762189524,1.45808149,184.46,184.43,53.93211137]
[1760762189841,1.45808149,184.46,184.44,0.71]
[1760762191924,1.45808149,184.46,184.44,48.51]
[1760762197948,1.45808149,184.46,184.44,71.39]
[1760762198440,1.45808149,184.46,184.44,70.68]
[1760762198843,1.45808149,184.45,184.44,70.68]
[1760762199145,1.45808149,184.45,184.44,47.8]
[1760762199927,2.14808149,184.45,184.44,47.8]
[1760762200322,2.14808149,184.45,184.41,0.1]
[1760762200543,1.45808149,184.42,184.41,0.1]
[1760762201441,1.45808149,184.42,184.41,0.76]
[1760762201937,1.45808149,184.43,184.41,0.76]
[1760762206183,0.67765369,184.46,184.41,5.52257574]
[1760762206335,1.45808149,184.47,184.42,0.66]
[1760762206845,1.45808149,184.48,184.42,0.66]
[1760762207032,1.45808149,184.48,184.42,48.46]
[1760762207234,1.45808149,184.47,184.43,0.66]
[1760762208338,1.45808149,184.47,184.44,5.42181739]
[1760762208537,1.45808149,184.47,184.44,6.08181739]
[1760762209443,2.28324706,184.47,184.44,6.08181739]
[1760762210845,2.28324706,184.47,184.44,5.42181739]
[1760762211165,2.28324706,184.47,184.44,6.08181739]
[1760762211344,2.28324706,184.47,184.44,5.42181739]
[1760762211668,2.28324706,184.47,184.45,0.66]
[1760762212044,2.28324706,184.47,184.44,5.42181739]
[1760762212356,2.28324706,184.47,184.44,6.08181739]
[1760762212536,2.28324706,184.47,184.44,53.88181739]
[1760762212738,2.28324706,184.45,184.41,0.1]
[1760762212950,2.28324706,184.42,184.41,0.1]
[1760762213169,2.97324706,184.42,184.41,0.1]
[1760762218473,2.28324706,184.42,184.41,47.9]
[1760762220576,2.97324706,184.42,184.41,47.9]
[1760762222376,2.97324706,184.42,184.41,0.76]
[1760762222377,2.28324706,184.42,184.41,0.76]
[1760762222550,2.97324706,184.42,184.41,0.1]
[1760762222754,2.28324706,184.42,184.41,0.1]
[1760762223165,3.24537087,184.42,184.41,0.1]
[1760762225553,3.65537087,184.42,184.41,0.1]
[1760762225751,3.24537087,184.42,184.41,0.1]
[1760762226573,3.65537087,184.42,184.41,0.1]
[1760762226880,3.24537087,184.42,184.41,0.1]
[1760762229691,3.65537087,184.42,184.41,0.1]
[1760762229977,22.88,184.39,184.38,0.1]
[1760762230183,25.4475702,184.39,184.38,0.1]
[1760762230369,25.8575702,184.39,184.38,0.1]
[1760762230777,0.28432314,184.38,184.33,0.1]
[1760762230970,2.28324706,184.34,184.33,0.1]
[1760762231876,2.28324706,184.34,184.33,0.79]
[1760762232061,2.28324706,184.36,184.33,6.21498395]
[1760762232263,2.28324706,184.36,184.34,0.69]
[1760762232576,0.67776392,184.43,184.34,0.69]
[1760762232577,2.28324706,184.37,184.34,0.69]
[1760762232970,2.28324706,184.36,184.34,0.69]
[1760762233683,2.28324706,184.36,184.34,6.11475799]
[1760762233870,2.28324706,184.36,184.35,0.69]
[1760762234868,2.28324706,184.37,184.35,0.69]
[1760762237385,2.28324706,184.38,184.35,0.69]
[1760762237691,2.28324706,184.39,184.35,6.11435068]
[1760762237894,2.28324706,184.4,184.36,0.69]
[1760762238394,2.28324706,184.43,184.36,48.49]
[1760762238603,2.28324706,184.4,184.37,0.69]
[1760762239296,2.28324706,184.42,184.37,0.69]
[1760762239467,2.28324706,184.42,184.38,5.42358173]
[1760762239667,0.67769043,184.45,184.39,0.69]
[1760762239668,2.28324706,184.41,184.39,0.69]
[1760762239890,2.28324706,184.41,184.4,0.69]
[1760762240465,2.28324706,184.42,184.4,0.69]
[1760762240690,2.28324706,184.42,184.41,0.69]
[1760762240887,0.96201357,184.45,184.41,0.69]
[1760762241092,2.28324706,184.42,184.41,0.69]
[1760762241990,2.28324706,184.43,184.41,0.69]
[1760762242170,2.28324706,184.43,184.42,0.69]
[1760762243069,0.28432314,184.42,184.37,0.69]
[1760762243377,2.28324706,184.38,184.37,0.69]
[1760762243890,2.28324706,184.38,184.33,0.1]
[1760762244189,2.28324706,184.36,184.34,0.69]
[1760762244372,2.28324706,184.36,184.35,0.69]
[1760762245773,2.28324706,184.36,184.33,6.21500572]
[1760762245974,2.28324706,184.36,184.34,0.69]
[1760762246601,2.28324706,184.35,184.34,0.69]
[1760762247383,2.28324706,184.36,184.34,6.11475859]
[1760762247592,2.28324706,184.36,184.35,0.69]
[1760762248204,2.28324706,184.36,184.33,6.21504116]
[1760762248405,2.28324706,184.35,184.33,48.59]
[1760762248591,2.28324706,184.34,184.33,48.59]
[1760762249902,0.41,184.38,184.33,54.01500482]
[1760762249903,2.28324706,184.35,184.33,54.01500482]
[1760762250080,2.28324706,184.35,184.34,0.69]
[1760762251672,2.28324706,184.35,184.33,47.9]
[1760762251903,2.28324706,184.34,184.33,48.59]
[1760762252516,2.28324706,184.34,184.33,47.9]
[1760762252687,2.28324706,184.34,184.33,48.59]
[1760762253808,2.28324706,184.34,184.33,0.79]
[1760762254314,2.28324706,184.34,184.33,0.1]
[1760762254512,2.28324706,184.34,184.33,0.79]
[1760762255395,2.28324706,184.34,184.33,0.1]
[1760762258689,2.9775702,184.34,184.33,0.1]
[1760762258889,2.5675702,184.34,184.33,0.1]
[1760762259788,3.24566502,184.34,184.33,0.1]
[1760762260894,2.5675702,184.34,184.33,0.1]
[1760762261096,2.28324706,184.34,184.33,0.1]
[1760762262198,2.28324706,184.34,184.33,0.77]
[1760762262925,2.28324706,184.34,184.33,0.1]
[1760762271424,0.28432314,184.33,184.31,0.1]
[1760762271719,8.41036245,184.32,184.31,0.1]
[1760762273310,24.62876195,184.3,184.29,0.1]
[1760762273513,23.16432314,184.29,184.27,0.1]
[1760762273826,2.14275441,184.28,184.27,0.1]
[1760762274414,2.55275441,184.28,184.27,0.1]
[1760762275724,2.14275441,184.28,184.27,0.1]
[1760762277223,25.02275441,184.28,184.27,0.1]
[1760762277634,2.55275441,184.28,184.27,0.1]
[1760762280229,2.14275441,184.28,184.27,0.1]
[1760762281115,1.46443881,184.28,184.27,0.77]
[1760762281329,2.14275441,184.28,184.27,0.1]
[1760762282433,1.46443881,184.28,184.27,0.1]
[1760762283233,1.46443881,184.28,184.27,0.77]
[1760762284931,1.46443881,184.3,184.27,0.77]
[1760762285118,1.46443881,184.31,184.27,0.77]
[1760762285516,22.88,184.34,184.27,0.77]
[1760762285517,1.46443881,184.3,184.27,0.77]
[1760762286317,1.46443881,184.3,184.27,6.19667423]
[1760762286522,1.46443881,184.31,184.28,0.69]
[1760762287027,1.46443881,184.33,184.28,0.69]
[1760762287329,1.46443881,184.33,184.28,6.11642871]
[1760762287530,1.46443881,184.33,184.29,0.69]
[1760762287714,1.46443881,184.34,184.29,48.49]
[1760762287914,13.55671739,184.42,184.3,0.66]
[1760762287915,24.34443881,184.35,184.3,0.66]
[1760762288226,1.46443881,184.35,184.3,0.66]
[1760762288737,1.46443881,184.36,184.3,53.8856721]
[1760762288910,0.67787418,184.4,184.31,0.66]
[1760762289122,1.46443881,184.34,184.31,0.66]
[1760762289346,1.46443881,184.33,184.32,0.66]
[1760762290938,1.87443881,184.33,184.29,0.66]
[1760762291131,1.46443881,184.3,184.29,0.66]
[1760762291929,1.46443881,184.3,184.27,5.52681118]
[1760762291930,1.46443881,184.3,184.27,0.76]
[1760762292130,1.46443881,184.28,184.27,0.76]
[1760762293877,1.46443881,184.28,184.27,0.1]
[1760762294224,1.46443881,184.28,184.27,47.9]
[1760762294942,22.88,184.31,184.27,48.56]
[1760762295135,1.46443881,184.3,184.28,0.66]
[1760762295342,24.34443881,184.31,184.28,0.66]
[1760762295841,1.46443881,184.31,184.28,48.46]
[1760762296048,1.46443881,184.31,184.29,0.66]
[1760762296351,1.46443881,184.31,184.3,0.66]
[1760762296652,1.46443881,184.34,184.3,0.66]
[1760762296845,1.46443881,184.34,184.3,48.46]
[1760762297039,1.46443881,184.34,184.31,0.66]
[1760762297225,1.46443881,184.33,184.31,0.66]
[1760762297630,1.46443881,184.32,184.31,0.66]
[1760762297842,1.46443881,184.32,184.3,47.8]
[1760762298038,1.46443881,184.32,184.3,48.46]
[1760762298450,1.46443881,184.32,184.31,0.66]
[1760762299159,1.46443881,184.34,184.31,0.66]
[1760762299456,1.46443881,184.33,184.32,0.66]
[1760762299659,1.46443881,184.33,184.3,48.46]
[1760762299953,1.46443881,184.32,184.31,0.66]
[1760762301534,1.46443881,184.32,184.29,0.66]
[1760762301740,1.46443881,184.31,184.29,0.66]
[1760762302162,1.46443881,184.3,184.27,48.56]
[1760762302452,1.46443881,184.29,184.28,0.66]
[1760762302756,1.46443881,184.29,184.28,47.8]
[1760762302974,1.87443881,184.29,184.27,47.9]
[1760762303259,1.46443881,184.28,184.27,47.9]
[1760762303444,2.83707755,184.28,184.27,0.1]
[1760762304460,25.71707755,184.28,184.27,0.1]
[1760762308043,25.30707755,184.28,184.27,0.1]
[1760762308247,1.46443881,184.28,184.27,0.76]
[1760762308447,1.74876195,184.28,184.27,0.1]
[1760762308965,24.62876195,184.28,184.27,0.1]
[1760762311156,1.74876195,184.28,184.27,0.1]
[1760762317767,0.28432314,184.28,184.27,0.1]
[1760762317952,1.46443881,184.28,184.27,0.76]
[1760762318556,1.74876195,184.28,184.27,0.76]
[1760762318772,1.74876195,184.28,184.27,0.1]
[1760762319265,24.62876195,184.28,184.27,0.1]
[1760762321082,1.74876195,184.28,184.27,0.1]
[1760762321262,2.15876195,184.28,184.27,0.1]
[1760762321774,1.74876195,184.28,184.27,0.1]
[1760762329263,1.74876195,184.28,184.27,0.78]
[1760762330663,1.46443881,184.28,184.27,0.78]
[1760762330970,1.74876195,184.28,184.27,0.1]
[1760762331381,2.57325373,184.28,184.27,0.1]
[1760762331761,2.57325373,184.28,184.27,0.78]
[1760762332380,2.57325373,184.28,184.27,0.1]
[1760762333774,2.57325373,184.23,184.22,3.3338]
[1760762334368,3.25175343,184.23,184.22,3.3338]
[1760762335172,26.13175343,184.23,184.22,3.3338]
[1760762336163,26.13175343,184.23,184.22,4.0138]
[1760762336482,26.13175343,184.23,184.22,3.3338]
[1760762340491,23.84282284,184.23,184.22,4.0138]
[1760762340793,26.13175343,184.23,184.22,4.0138]
[1760762341893,0.28432314,184.23,184.22,4.0138]
[1760762342094,23.55842605,184.25,184.22,4.0138]
[1760762342397,0.41,184.3,184.23,0.68]
[1760762342398,2.28893059,184.24,184.23,0.68]
[1760762343874,2.28893059,184.26,184.23,0.68]
[1760762344274,0.67827879,184.29,184.22,51.1338]
[1760762344275,2.28893059,184.24,184.22,51.1338]
[1760762344487,2.28893059,184.23,184.22,51.1338]
[1760762344686,2.28893059,184.23,184.22,3.3338]
[1760762344896,2.28893059,184.23,184.22,3.9938]
[1760762351320,2.28893059,184.23,184.22,3.3338]
[1760762351321,2.98325373,184.23,184.22,3.3338]
[1760762352615,0.28432314,184.23,184.22,3.3338]
[1760762352819,2.57325373,184.23,184.22,3.3338]
[1760762354319,2.28893059,184.23,184.22,3.9938]
[1760762354523,2.28893059,184.23,184.22,3.3338]
[1760762355404,2.28893059,184.23,184.22,3.9938]
[1760762360126,2.28893059,184.23,184.22,3.3338]
[1760762360823,25.86325373,184.23,184.22,3.3338]
[1760762361023,25.45325373,184.23,184.22,3.3338]
[1760762361721,25.86325373,184.23,184.22,3.3338]
[1760762362133,25.45325373,184.23,184.22,3.3338]
[1760762363922,25.45325373,184.23,184.18,13.92910228]
[1760762363923,0.28432314,184.22,184.18,13.92910228]
[1760762364229,25.45325373,184.19,184.18,13.92910228]
[1760762364412,26.13190077,184.19,184.18,13.92910228]
[1760762364731,2.28893059,184.19,184.18,14.58910228]
[1760762367729,2.28893059,184.19,184.18,13.92910228]
[1760762368225,25.45325373,184.19,184.18,13.92910228]
[1760762368424,22.88,184.19,184.18,14.58910228]
[1760762368630,25.16893059,184.19,184.18,14.58910228]
[1760762369035,2.28893059,184.19,184.18,14.58910228]
[1760762370235,0.67853653,184.22,184.18,14.58910228]
[1760762370527,2.28893059,184.2,184.19,0.66]
[1760762372007,0.67842605,184.25,184.19,48.46]
[1760762372008,2.28893059,184.22,184.19,48.46]
[1760762372207,0.67835241,184.27,184.2,0.66]
[1760762372430,2.28893059,184.24,184.2,48.46]
[1760762372652,2.28893059,184.24,184.2,47.8]
[1760762372823,2.28893059,184.24,184.21,0.66]
[1760762373823,2.28893059,184.25,184.22,5.42829225]
[1760762374019,2.28893059,184.26,184.23,0.66]
[1760762374416,2.28893059,184.27,184.23,0.66]
[1760762375132,2.28893059,184.26,184.23,0.66]
[1760762375328,2.28893059,184.25,184.23,0.66]
[1760762375846,2.96739346,184.24,184.21,47.8]
[1760762376016,2.28893059,184.22,184.21,47.8]
[1760762376211,2.28893059,184.22,184.18,13.92910228]
[1760762376422,0.96278601,184.24,184.21,0.66]
[1760762377649,2.28893059,184.22,184.21,0.66]
[1760762378525,2.28893059,184.22,184.19,0.7]
[1760762378740,2.28893059,184.2,184.18,13.92910228]
[1760762378944,2.28893059,184.19,184.18,13.92910228]
[1760762380138,2.57325373,184.19,184.18,13.92910228]
[1760762381639,0.28432314,184.19,184.18,13.92910228]
[1760762381944,2.28893059,184.19,184.18,14.62910228]
[1760762387148,2.28893059,184.19,184.18,62.42910228]
[1760762387531,2.28893059,184.21,184.18,62.42910228]
[1760762387738,2.28893059,184.21,184.19,0.7]
[1760762387942,2.28893059,184.2,184.18,61.72910228]
[1760762388137,2.28893059,184.19,184.18,61.72910228]
[1760762388646,2.28893059,184.19,184.18,62.42910228]
[1760762392136,2.28893059,184.2,184.18,62.42910228]
[1760762392341,0.28432314,184.22,184.18,62.42910228]
[1760762392342,2.28893059,184.19,184.18,62.42910228]
[1760762392841,22.88,184.23,184.18,62.42910228]
[1760762393050,2.28893059,184.21,184.19,0.7]
[1760762393564,1.46540499,184.21,184.19,48.5]
[1760762393763,1.46540499,184.21,184.2,0.7]
[1760762394063,1.46540499,184.21,184.18,13.92910228]
[1760762394349,1.74972813,184.19,184.18,13.92910228]
[1760762394740,24.62972813,184.19,184.18,13.92910228]
[1760762395756,1.74972813,184.19,184.18,13.92910228]
[1760762395954,2.15972813,184.19,184.18,13.92910228]
[1760762397249,7.58890452,184.19,184.18,13.92910228]
[1760762398044,2.15972813,184.19,184.18,13.92910228]
[1760762398236,24.62972813,184.19,184.18,13.92910228]
[1760762399752,1.74972813,184.19,184.18,13.92910228]
[1760762401747,24.62972813,184.19,184.18,13.92910228]
[1760762402469,24.34540499,184.19,184.18,14.62910228]
[1760762402638,24.62972813,184.19,184.18,13.92910228]
[1760762403055,25.30837517,184.19,184.18,13.92910228]
[1760762403359,24.62972813,184.19,184.18,14.62910228]
[1760762403555,24.62972813,184.19,184.18,13.92910228]
[1760762403757,24.62972813,184.19,184.18,14.63910228]
[1760762403943,24.62972813,184.19,184.18,13.92910228]
[1760762405246,1.74972813,184.19,184.18,13.92910228]
[1760762405560,2.42837517,184.19,184.18,13.92910228]
[1760762405968,25.30837517,184.19,184.18,13.92910228]
[1760762407562,1.74972813,184.19,184.18,14.63910228]
[1760762408071,24.62972813,184.19,184.18,13.92910228]
[1760762408569,1.74972813,184.19,184.18,13.92910228]
[1760762408747,2.42837517,184.19,184.18,13.92910228]
[1760762409357,25.30837517,184.19,184.18,13.92910228]
[1760762410658,23.84297018,184.19,184.18,13.92910228]
[1760762410843,25.30837517,184.19,184.18,14.63910228]
[1760762411546,25.30837517,184.19,184.18,13.92910228]
[1760762413468,2.42837517,184.19,184.18,13.92910228]
[1760762414262,25.30837517,184.19,184.18,13.92910228]
[1760762415970,2.42837517,184.19,184.18,13.92910228]
[1760762416179,2.42837517,184.19,184.18,14.63910228]
[1760762416562,1.74972813,184.19,184.18,14.63910228]
[1760762417384,24.62972813,184.19,184.18,14.63910228]
[1760762418790,1.46540499,184.19,184.18,14.63910228]
[1760762419588,0.9628965,184.21,184.18,14.63910228]
[1760762419766,1.46540499,184.19,184.18,13.92910228]
[1760762420387,1.46540499,184.19,184.18,14.63910228]
[1760762423079,1.46540499,184.19,184.18,13.92910228]
[1760762423271,24.62972813,184.19,184.18,13.92910228]
[1760762423692,1.74972813,184.19,184.18,13.92910228]
[1760762423907,2.15972813,184.19,184.18,13.92910228]
[1760762424397,21.1618455,184.19,184.15,0.1]
[1760762424577,24.62972813,184.16,184.15,0.1]
[1760762424901,23.16432314,184.15,184.14,0.1]
[1760762425207,25.71852259,184.15,184.14,0.1]
[1760762426291,2.42852259,184.15,184.14,0.81]
[1760762426478,2.42852259,184.15,184.14,0.31]
[1760762426479,25.30852259,184.15,184.14,0.31]
[1760762427098,0.28432314,184.14,184.1,2.1778782]
[1760762427303,1.46540499,184.11,184.08,0.1]
[1760762428193,1.46540499,184.09,184.08,0.1]
[1760762428399,1.46540499,184.1,184.08,0.1]
[1760762428588,1.46540499,184.11,184.09,0.71]
[1760762428790,1.46540499,184.11,184.1,0.71]
[1760762428988,0.67883132,184.14,184.1,0.71]
[1760762429188,1.46540499,184.16,184.1,0.71]
[1760762429501,1.74972813,184.17,184.1,48.51]
[1760762429699,1.46540499,184.16,184.11,0.71]
[1760762430388,1.74972813,184.17,184.11,6.14131916]
[1760762430700,1.46540499,184.14,184.12,0.71]
[1760762430888,1.46540499,184.13,184.12,0.71]
[1760762431486,1.46540499,184.13,184.1,48.51]
[1760762431687,1.46540499,184.12,184.11,0.71]
[1760762431892,1.46540499,184.13,184.11,0.71]
[1760762432105,1.46540499,184.12,184.1,47.8]
[1760762432310,1.46540499,184.11,184.1,47.8]
[1760762432499,1.46540499,184.12,184.1,47.8]
[1760762432717,1.46540499,184.12,184.11,0.71]
[1760762432884,1.46540499,184.13,184.11,0.71]
[1760762433193,1.46540499,184.14,184.12,0.71]
[1760762434098,1.46540499,184.13,184.12,0.71]
[1760762435807,2.44972813,184.13,184.1,47.8]
[1760762436102,1.46540499,184.12,184.08,47.9]
[1760762436810,1.46540499,184.12,184.09,0.71]
[1760762437193,0.96315446,184.14,184.08,47.9]
[1760762437194,0.28432314,184.1,184.08,0.1]
[1760762437498,1.46540499,184.11,184.09,0.71]
[1760762437709,1.46540499,184.11,184.1,0.71]
[1760762438216,1.46540499,184.11,184.08,0.1]
[1760762438400,1.46540499,184.11,184.08,0.79]
[1760762439213,1.46540499,184.09,184.08,0.79]
[1760762440310,1.46540499,184.09,184.08,0.1]
[1760762440517,0.28432314,184.1,184.08,0.1]
[1760762440833,1.46540499,184.09,184.08,0.1]
[1760762441322,2.84442068,184.09,184.02,47.8]
[1760762441516,1.46540499,184.05,184.01,5.43423217]
[1760762441709,1.46540499,184.05,184.01,22.88]
[1760762442300,1.46540499,184.06,184.01,22.88]
[1760762442717,1.46540499,184.06,184.01,28.31438481]
[1760762443334,0.96337572,184.08,184.01,0.69]
[1760762443335,1.46540499,184.03,184.01,0.69]
[1760762443614,1.46540499,184.04,184.02,0.69]
[1760762443995,1.46540499,184.04,183.98,0.69]
[1760762444202,0.28432314,184.07,183.98,0.69]
[1760762444504,1.46540499,184.04,183.98,0.69]
[1760762444715,23.84341261,184.07,183.99,5.43507799]
[1760762444904,1.46540499,184.05,184.0,0.69]
[1760762445216,1.46540499,184.05,184.01,0.69]
[1760762445411,0.28432314,184.07,184.01,0.69]
[1760762445611,1.46540499,184.06,184.01,0.69]
[1760762445817,1.46540499,184.06,183.99,5.43507799]
[1760762445818,1.46540499,184.06,184.02,0.69]
[1760762446006,1.46540499,184.06,184.03,0.69]
[1760762446623,1.46540499,184.06,184.01,5.43443742]
[1760762447319,0.28432314,184.07,183.98,5.43537341]
[1760762447320,0.96341261,184.07,183.98,5.43537341]
[1760762447522,1.46540499,184.05,183.98,5.43537341]
[1760762447924,1.46540499,184.05,184.0,22.88]
[1760762448422,1.46540499,184.02,183.98,70.68]
[1760762448721,1.46540499,184.02,183.99,0.69]
[1760762449323,1.46540499,184.03,183.99,0.69]
[1760762449634,1.46540499,184.04,184.0,0.69]
[1760762449937,0.14216157,184.06,184.01,0.69]
[1760762450113,1.46540499,184.04,184.01,0.69]
[1760762450633,1.46540499,184.03,184.01,0.69]
[1760762450922,1.46540499,184.05,184.01,5.434425]
[1760762451130,1.46540499,184.05,184.02,0.69]
[1760762451517,1.46540499,184.04,184.02,0.69]
[1760762451716,1.46540499,184.04,184.01,5.434425]
[1760762451920,1.46540499,184.04,184.01,6.124425]
[1760762452324,1.46540499,184.04,184.01,5.434425]
[1760762452636,1.46540499,184.04,184.02,0.69]
[1760762452837,1.46540499,184.05,184.02,0.69]
[1760762453835,1.46540499,184.06,184.03,0.69]
[1760762454013,1.46540499,184.06,184.04,0.69]
[1760762454617,2.16540499,184.05,184.0,47.8]
[1760762454817,1.46540499,184.04,184.0,53.92462602]
[1760762455023,1.46540499,184.04,184.01,0.69]
[1760762455319,2.29369206,184.05,184.01,0.69]
[1760762455638,2.29369206,184.05,184.02,0.69]
[1760762456233,2.29369206,184.06,184.03,0.69]
[1760762456439,2.29369206,184.07,184.04,0.69]
[1760762456621,2.29369206,184.1,184.04,0.69]
[1760762456822,2.99369206,184.1,184.04,6.12331114]
[1760762457021,2.29369206,184.09,184.04,6.12331114]
[1760762457223,2.29369206,184.09,184.05,0.69]
[1760762457623,2.99369206,184.09,184.05,0.69]
[1760762458540,2.29369206,184.09,184.06,0.69]
[1760762458840,2.29369206,184.1,184.07,0.69]
[1760762459637,0.14216157,184.12,184.07,47.8]
[1760762459937,2.29369206,184.11,184.08,0.69]
[1760762460236,2.29369206,184.11,184.09,0.69]
[1760762460424,23.58,184.14,184.09,0.69]
[1760762460622,2.29369206,184.1,184.08,47.8]